[Event "Early-Titled-Tuesday-Blitz-February-20-2024"]
[Site "Chess.com"]
[Date "2024.02.20"]
[Round "1"]
[White "VinzentSpitzl"]
[Black "stratacticos"]
[Result "1-0"]
[WhiteElo "2543"]
[BlackElo "1978"]
[TimeControl "180+1"]
[EndTime "8:07:40 PST"]
[Termination "VinzentSpitzl won on time"]

1. e4 {[%clk 0:03:00.9]} 1... c5 {[%clk 0:02:59.3]} 2. Nf3 {[%clk 0:03:00.8]}
2... Nc6 {[%clk 0:02:59]} 3. d4 {[%clk 0:03:01.1]} 3... cxd4 {[%clk 0:02:58.5]}
4. Nxd4 {[%clk 0:03:02]} 4... e5 {[%clk 0:02:58.2]} 5. Nb5 {[%clk 0:03:01.7]}
5... d6 {[%clk 0:02:56.8]} 6. c4 {[%clk 0:03:01.4]} 6... Be6 {[%clk 0:02:55.7]}
7. N1c3 {[%clk 0:03:00.7]} 7... a6 {[%clk 0:02:55.3]} 8. Na3 {[%clk 0:03:00.8]}
8... Be7 {[%clk 0:02:54.6]} 9. Be2 {[%clk 0:03:00.2]} 9... Nf6 {[%clk
0:02:51.1]} 10. Be3 {[%clk 0:02:59.8]} 10... O-O {[%clk 0:02:48.8]} 11. Nc2
{[%clk 0:03:00]} 11... Rc8 {[%clk 0:02:45.8]} 12. O-O {[%clk 0:02:59.1]} 12...
Na5 {[%clk 0:02:44.4]} 13. b3 {[%clk 0:02:52.9]} 13... b5 {[%clk 0:02:43.3]} 14.
Qd2 {[%clk 0:02:48.1]} 14... bxc4 {[%clk 0:02:42.1]} 15. b4 {[%clk 0:02:48.3]}
15... Nc6 {[%clk 0:02:32.1]} 16. Rfd1 {[%clk 0:02:39.7]} 16... Rb8 {[%clk
0:02:07.6]} 17. Rab1 {[%clk 0:02:33.1]} 17... h6 {[%clk 0:01:55.2]} 18. a4
{[%clk 0:02:31.8]} 18... a5 {[%clk 0:01:40.5]} 19. b5 {[%clk 0:02:29.9]} 19...
Nb4 {[%clk 0:01:40.1]} 20. Rxb4 {[%clk 0:02:10.3]} 20... axb4 {[%clk 0:01:37.5]}
21. Nxb4 {[%clk 0:02:10.8]} 21... Bd7 {[%clk 0:01:23.9]} 22. f3 {[%clk
0:02:08.5]} 22... Nh7 {[%clk 0:01:18.6]} 23. Nbd5 {[%clk 0:01:47.1]} 23... Bg5
{[%clk 0:01:15.9]} 24. Bxc4 {[%clk 0:01:33]} 24... Bxe3+ {[%clk 0:01:10.8]} 25.
Nxe3 {[%clk 0:01:29.7]} 25... Ng5 {[%clk 0:01:09.7]} 26. Qxd6 {[%clk 0:01:25.6]}
26... Be6 {[%clk 0:01:02.8]} 27. Qxd8 {[%clk 0:01:15.2]} 27... Rfxd8 {[%clk
0:01:01.7]} 28. Ncd5 {[%clk 0:01:15]} 28... Kf8 {[%clk 0:00:46.8]} 29. a5 {[%clk
0:01:06.3]} 29... Bxd5 {[%clk 0:00:40.7]} 30. Nxd5 {[%clk 0:01:06.1]} 30... Ne6
{[%clk 0:00:40.3]} 31. b6 {[%clk 0:01:02.7]} 31... Nc5 {[%clk 0:00:32.5]} 32.
Rb1 {[%clk 0:00:52.7]} 32... f5 {[%clk 0:00:29.3]} 33. a6 {[%clk 0:00:40.5]}
33... fxe4 {[%clk 0:00:27.5]} 34. fxe4 {[%clk 0:00:28]} 34... Nxe4 {[%clk
0:00:27.1]} 35. a7 {[%clk 0:00:25.7]} 35... Ra8 {[%clk 0:00:17.2]} 36. b7 {[%clk
0:00:19]} 36... Nd6 {[%clk 0:00:09.3]} 37. bxa8=Q {[%clk 0:00:17.7]} 37... Rxa8
{[%clk 0:00:08.2]} 38. Rb8+ {[%clk 0:00:17.6]} 1-0

[Event "Early-Titled-Tuesday-Blitz-February-20-2024"]
[Site "Chess.com"]
[Date "2024.02.20"]
[Round "1"]
[White "ShieldingOff"]
[Black "FARIZA2018"]
[Result "0-1"]
[WhiteElo "1996"]
[BlackElo "2548"]
[TimeControl "180+1"]
[EndTime "8:07:42 PST"]
[Termination "FARIZA2018 won on time"]

1. d4 {[%clk 0:02:51.2]} 1... Nf6 {[%clk 0:02:58.9]} 2. c4 {[%clk 0:02:50.3]}
2... e6 {[%clk 0:02:59]} 3. g3 {[%clk 0:02:49.3]} 3... d5 {[%clk 0:02:59.2]} 4.
Nf3 {[%clk 0:02:47.6]} 4... dxc4 {[%clk 0:02:59.5]} 5. Bg2 {[%clk 0:02:46.7]}
5... c5 {[%clk 0:02:59.7]} 6. O-O {[%clk 0:02:45.8]} 6... Nc6 {[%clk 0:03:00.1]}
7. dxc5 {[%clk 0:02:35.3]} 7... Qxd1 {[%clk 0:02:59.9]} 8. Rxd1 {[%clk
0:02:35.1]} 8... Bxc5 {[%clk 0:03:00.5]} 9. Na3 {[%clk 0:02:31]} 9... Bxa3
{[%clk 0:02:58.7]} 10. bxa3 {[%clk 0:02:30.7]} 10... O-O {[%clk 0:02:58.1]} 11.
Be3 {[%clk 0:02:16.6]} 11... Bd7 {[%clk 0:02:51.4]} 12. Nd2 {[%clk 0:01:37.8]}
12... Na5 {[%clk 0:02:43.3]} 13. Bc5 {[%clk 0:01:21.1]} 13... Rfc8 {[%clk
0:02:32.8]} 14. Bb4 {[%clk 0:01:20.7]} 14... Nc6 {[%clk 0:02:32.8]} 15. Bc3
{[%clk 0:01:14.2]} 15... Nd5 {[%clk 0:02:23.6]} 16. Bxd5 {[%clk 0:00:47]} 16...
exd5 {[%clk 0:02:23.5]} 17. Nf3 {[%clk 0:00:46.7]} 17... Be6 {[%clk 0:02:21.5]}
18. Rab1 {[%clk 0:00:43.8]} 18... b6 {[%clk 0:02:20.1]} 19. Nd4 {[%clk
0:00:36.6]} 19... Ne7 {[%clk 0:01:55]} 20. Rb2 {[%clk 0:00:25.2]} 20... Rd8
{[%clk 0:01:18.6]} 21. a4 {[%clk 0:00:24.2]} 21... Rd7 {[%clk 0:01:18]} 22. a5
{[%clk 0:00:24]} 22... bxa5 {[%clk 0:01:16.2]} 23. Bxa5 {[%clk 0:00:21.9]} 23...
h5 {[%clk 0:01:10.9]} 24. Rdb1 {[%clk 0:00:19.4]} 24... Kh7 {[%clk 0:01:09.4]}
25. Rb7 {[%clk 0:00:17]} 25... Rxb7 {[%clk 0:00:49.6]} 26. Rxb7 {[%clk
0:00:16.5]} 26... Ng6 {[%clk 0:00:43.6]} 27. Bc3 {[%clk 0:00:15.3]} 27... Rg8
{[%clk 0:00:31.9]} 28. Rxa7 {[%clk 0:00:13.8]} 28... h4 {[%clk 0:00:31]} 29. a4
{[%clk 0:00:08.4]} 29... h3 {[%clk 0:00:29.2]} 30. f3 {[%clk 0:00:08.7]} 30...
Rb8 {[%clk 0:00:14]} 31. a5 {[%clk 0:00:08.3]} 31... Rb1+ {[%clk 0:00:13.2]} 32.
Kf2 {[%clk 0:00:07.6]} 32... Rc1 {[%clk 0:00:12]} 33. Bb2 {[%clk 0:00:03.1]}
33... Rb1 {[%clk 0:00:10.6]} 34. Bc3 {[%clk 0:00:03.3]} 34... Nf8 {[%clk
0:00:06.4]} 35. a6 {[%clk 0:00:03.1]} 35... Bd7 {[%clk 0:00:03.9]} 0-1

[Event "Early-Titled-Tuesday-Blitz-February-20-2024"]
[Site "Chess.com"]
[Date "2024.02.20"]
[Round "1"]
[White "viktorgen2021"]
[Black "mr65"]
[Result "1-0"]
[WhiteElo "2542"]
[BlackElo "1971"]
[TimeControl "180+1"]
[EndTime "8:07:42 PST"]
[Termination "viktorgen2021 won by resignation"]

1. d4 {[%clk 0:03:00.9]} 1... Nf6 {[%clk 0:02:59]} 2. Nf3 {[%clk 0:02:58.8]}
2... g6 {[%clk 0:02:58.7]} 3. g3 {[%clk 0:02:59.4]} 3... Bg7 {[%clk 0:02:58.6]}
4. Bg2 {[%clk 0:03:00.1]} 4... O-O {[%clk 0:02:58.6]} 5. O-O {[%clk 0:03:00.6]}
5... d6 {[%clk 0:02:57.6]} 6. a4 {[%clk 0:02:58.6]} 6... Nbd7 {[%clk 0:02:56.5]}
7. a5 {[%clk 0:02:58.9]} 7... a6 {[%clk 0:02:55.9]} 8. Nc3 {[%clk 0:02:58.8]}
8... e5 {[%clk 0:02:55.7]} 9. e4 {[%clk 0:02:52.4]} 9... exd4 {[%clk 0:02:45.9]}
10. Nxd4 {[%clk 0:02:53.3]} 10... Nc5 {[%clk 0:02:45.3]} 11. h3 {[%clk
0:02:52.3]} 11... Re8 {[%clk 0:02:41.7]} 12. Re1 {[%clk 0:02:52.6]} 12... Bd7
{[%clk 0:02:39.6]} 13. Kh2 {[%clk 0:02:51.5]} 13... Bc6 {[%clk 0:02:34.9]} 14.
Nxc6 {[%clk 0:02:50.3]} 14... bxc6 {[%clk 0:02:35]} 15. Bf4 {[%clk 0:02:45.5]}
15... Rb8 {[%clk 0:02:30.4]} 16. Rb1 {[%clk 0:02:44.9]} 16... Nfd7 {[%clk
0:02:29.8]} 17. Qd2 {[%clk 0:02:12]} 17... Ne5 {[%clk 0:02:28.5]} 18. b3 {[%clk
0:02:10.1]} 18... h5 {[%clk 0:02:19.5]} 19. Bg5 {[%clk 0:02:05.7]} 19... Qd7
{[%clk 0:02:16.2]} 20. f4 {[%clk 0:01:52.6]} 20... f6 {[%clk 0:02:08.4]} 21. Bh4
{[%clk 0:01:35]} 21... Nf7 {[%clk 0:02:07.1]} 22. b4 {[%clk 0:01:21.6]} 22...
Ne6 {[%clk 0:01:59.8]} 23. f5 {[%clk 0:01:21.2]} 23... gxf5 {[%clk 0:01:56.1]}
24. exf5 {[%clk 0:01:22.1]} 24... Neg5 {[%clk 0:01:55.7]} 25. Rf1 {[%clk
0:01:22]} 25... Re5 {[%clk 0:01:50.9]} 26. g4 {[%clk 0:01:15.5]} 26... hxg4
{[%clk 0:01:49.6]} 27. hxg4 {[%clk 0:01:16.4]} 27... Bh6 {[%clk 0:01:49.1]} 28.
Qf2 {[%clk 0:01:13.4]} 28... Kg7 {[%clk 0:01:39.8]} 29. Bg3 {[%clk 0:01:13.1]}
29... Re7 {[%clk 0:01:39.3]} 30. Bf4 {[%clk 0:01:12]} 30... Rh8 {[%clk
0:01:37.9]} 31. Kg3 {[%clk 0:01:08]} 31... Ree8 {[%clk 0:01:33.8]} 32. Rbe1
{[%clk 0:01:05.7]} 32... Rxe1 {[%clk 0:01:32.4]} 33. Rxe1 {[%clk 0:01:06.6]}
33... Ne5 {[%clk 0:01:30.9]} 34. Ne4 {[%clk 0:00:58]} 34... Nxe4+ {[%clk
0:01:28.2]} 35. Bxe4 {[%clk 0:00:58.9]} 35... Bxf4+ {[%clk 0:01:25.1]} 36. Qxf4
{[%clk 0:00:57.9]} 36... d5 {[%clk 0:01:16]} 37. Bg2 {[%clk 0:00:56.1]} 37...
Kf8 {[%clk 0:01:11.2]} 38. g5 {[%clk 0:00:48.1]} 38... Qg7 {[%clk 0:01:07.8]}
39. g6 {[%clk 0:00:46.4]} 39... Rh5 {[%clk 0:01:04.5]} 40. Rh1 {[%clk
0:00:35.1]} 40... Rxh1 {[%clk 0:01:02.7]} 41. Bxh1 {[%clk 0:00:36]} 41... Qh8
{[%clk 0:01:02.6]} 42. Bg2 {[%clk 0:00:30.1]} 42... Kg7 {[%clk 0:01:02.4]} 43.
Qf2 {[%clk 0:00:23.7]} 43... Qh6 {[%clk 0:00:59]} 44. Qa7 {[%clk 0:00:21.6]}
44... Qg5+ {[%clk 0:00:57.8]} 45. Kh2 {[%clk 0:00:21.7]} 45... Ng4+ {[%clk
0:00:57.5]} 46. Kg1 {[%clk 0:00:18.2]} 46... Qe3+ {[%clk 0:00:57]} 47. Qxe3
{[%clk 0:00:17.2]} 47... Nxe3 {[%clk 0:00:55.9]} 48. Bf1 {[%clk 0:00:16]} 48...
Nxc2 {[%clk 0:00:55.1]} 49. Bxa6 {[%clk 0:00:15.7]} 49... Nxb4 {[%clk
0:00:55.1]} 50. Bc8 {[%clk 0:00:15.4]} 50... c5 {[%clk 0:00:54.1]} 51. a6 {[%clk
0:00:14.3]} 51... Nc6 {[%clk 0:00:54.3]} 52. Bb7 {[%clk 0:00:13.9]} 52... Na7
{[%clk 0:00:54.4]} 53. Bxd5 {[%clk 0:00:14.1]} 53... c6 {[%clk 0:00:54.7]} 54.
Be4 {[%clk 0:00:09.5]} 54... c4 {[%clk 0:00:53.6]} 55. Kf2 {[%clk 0:00:09.6]}
55... c3 {[%clk 0:00:53.9]} 56. Ke3 {[%clk 0:00:09.8]} 56... Nb5 {[%clk
0:00:53.5]} 57. Kd3 {[%clk 0:00:06.7]} 57... c5 {[%clk 0:00:53.3]} 58. Bc6
{[%clk 0:00:06.7]} 58... Na7 {[%clk 0:00:51.4]} 59. Bd7 {[%clk 0:00:07]} 59...
Kf8 {[%clk 0:00:50.6]} 60. Kxc3 {[%clk 0:00:06.6]} 60... Kg7 {[%clk 0:00:51.2]}
61. Kc4 {[%clk 0:00:06.7]} 61... Kf8 {[%clk 0:00:49.5]} 62. Kxc5 {[%clk
0:00:07.2]} 62... Kg7 {[%clk 0:00:49.9]} 63. Kb6 {[%clk 0:00:07.3]} 1-0

[Event "Early-Titled-Tuesday-Blitz-February-20-2024"]
[Site "Chess.com"]
[Date "2024.02.20"]
[Round "1"]
[White "MVM2008"]
[Black "Kobalia"]
[Result "1-0"]
[WhiteElo "2466"]
[BlackElo "2787"]
[TimeControl "180+1"]
[EndTime "8:07:43 PST"]
[Termination "MVM2008 won on time"]

1. e4 {[%clk 0:03:00.9]} 1... c5 {[%clk 0:02:46]} 2. Nf3 {[%clk 0:03:01]} 2...
e6 {[%clk 0:02:45.6]} 3. d4 {[%clk 0:03:01.3]} 3... cxd4 {[%clk 0:02:45.6]} 4.
Nxd4 {[%clk 0:03:02.2]} 4... Nc6 {[%clk 0:02:45.8]} 5. Nc3 {[%clk 0:03:02.7]}
5... a6 {[%clk 0:02:46.2]} 6. a3 {[%clk 0:03:02.7]} 6... d6 {[%clk 0:02:44.4]}
7. f4 {[%clk 0:03:02]} 7... Nf6 {[%clk 0:02:44.5]} 8. Be3 {[%clk 0:03:01.4]}
8... Bd7 {[%clk 0:02:43.9]} 9. Be2 {[%clk 0:02:59]} 9... Be7 {[%clk 0:02:43.5]}
10. Qd2 {[%clk 0:02:57.5]} 10... O-O {[%clk 0:02:43.2]} 11. O-O-O {[%clk
0:02:54.5]} 11... Rc8 {[%clk 0:02:42.3]} 12. g4 {[%clk 0:02:53.9]} 12... Nxd4
{[%clk 0:02:42.4]} 13. Bxd4 {[%clk 0:02:53.8]} 13... Bc6 {[%clk 0:02:42.5]} 14.
Bf3 {[%clk 0:02:45.1]} 14... b5 {[%clk 0:02:41.1]} 15. g5 {[%clk 0:02:45.2]}
15... Nd7 {[%clk 0:02:40.7]} 16. h4 {[%clk 0:02:40.4]} 16... e5 {[%clk
0:02:40.7]} 17. Be3 {[%clk 0:02:35.5]} 17... exf4 {[%clk 0:02:40.7]} 18. Bxf4
{[%clk 0:02:36.4]} 18... Ne5 {[%clk 0:02:40.8]} 19. Bxe5 {[%clk 0:02:36.5]}
19... dxe5 {[%clk 0:02:40.9]} 20. Nd5 {[%clk 0:02:36.3]} 20... Bxd5 {[%clk
0:02:38]} 21. exd5 {[%clk 0:02:28.8]} 21... Bd6 {[%clk 0:02:37.5]} 22. Be4
{[%clk 0:02:25.9]} 22... Rc4 {[%clk 0:02:33]} 23. Qd3 {[%clk 0:02:15.6]} 23...
g6 {[%clk 0:02:31.6]} 24. h5 {[%clk 0:02:12.9]} 24... Qxg5+ {[%clk 0:02:30.4]}
25. Kb1 {[%clk 0:02:13.1]} 25... f5 {[%clk 0:02:25.4]} 26. hxg6 {[%clk 0:01:47]}
26... fxe4 {[%clk 0:02:23.6]} 27. Qh3 {[%clk 0:01:40.4]} 27... h6 {[%clk
0:01:46.9]} 28. Qe6+ {[%clk 0:01:25.4]} 28... Kg7 {[%clk 0:01:31]} 29. Qxd6
{[%clk 0:01:04.6]} 29... Rd8 {[%clk 0:01:30.3]} 30. Qe6 {[%clk 0:00:58.9]} 30...
Rc7 {[%clk 0:01:08.8]} 31. Rdf1 {[%clk 0:00:47.1]} 31... Rdd7 {[%clk 0:00:39.2]}
32. Rhg1 {[%clk 0:00:31.7]} 32... Re7 {[%clk 0:00:30.4]} 33. Rf7+ {[%clk
0:00:20.6]} 33... Rxf7 {[%clk 0:00:29.7]} 34. Rxg5 {[%clk 0:00:20.6]} 34... Rfe7
{[%clk 0:00:21.2]} 35. Qf5 {[%clk 0:00:12.6]} 35... hxg5 {[%clk 0:00:18.6]} 36.
d6 {[%clk 0:00:13.1]} 36... Rcd7 {[%clk 0:00:16.6]} 37. dxe7 {[%clk 0:00:13]}
37... Rxe7 {[%clk 0:00:17.5]} 38. Qxg5 {[%clk 0:00:13.5]} 38... Re6 {[%clk
0:00:17.3]} 39. Qf5 {[%clk 0:00:12.8]} 39... Re7 {[%clk 0:00:16.1]} 40. Qxe4
{[%clk 0:00:12.9]} 40... Kf6 {[%clk 0:00:16.5]} 41. Qh4+ {[%clk 0:00:11.3]}
41... Ke6 {[%clk 0:00:15.9]} 42. Qh6 {[%clk 0:00:08.7]} 1-0

[Event "Early-Titled-Tuesday-Blitz-February-20-2024"]
[Site "Chess.com"]
[Date "2024.02.20"]
[Round "1"]
[White "Ordekalog"]
[Black "aldebaran52"]
[Result "1-0"]
[WhiteElo "2581"]
[BlackElo "2186"]
[TimeControl "180+1"]
[EndTime "8:07:43 PST"]
[Termination "Ordekalog won by resignation"]

1. e4 {[%clk 0:02:58.9]} 1... c5 {[%clk 0:02:58.6]} 2. d3 {[%clk 0:02:58.3]}
2... e6 {[%clk 0:02:57.1]} 3. g3 {[%clk 0:02:57.5]} 3... d6 {[%clk 0:02:55.8]}
4. Bg2 {[%clk 0:02:56.9]} 4... Nc6 {[%clk 0:02:56.5]} 5. f4 {[%clk 0:02:56.3]}
5... g6 {[%clk 0:02:56.9]} 6. Nf3 {[%clk 0:02:55.7]} 6... Bg7 {[%clk 0:02:57.5]}
7. c3 {[%clk 0:02:55.2]} 7... Nge7 {[%clk 0:02:58]} 8. O-O {[%clk 0:02:55.6]}
8... O-O {[%clk 0:02:57.5]} 9. Be3 {[%clk 0:02:56.2]} 9... Rb8 {[%clk
0:02:56.9]} 10. Nbd2 {[%clk 0:02:52.7]} 10... b5 {[%clk 0:02:55.4]} 11. d4
{[%clk 0:02:50.3]} 11... b4 {[%clk 0:02:42.1]} 12. Nb3 {[%clk 0:02:34.5]} 12...
bxc3 {[%clk 0:02:39.2]} 13. bxc3 {[%clk 0:02:33.7]} 13... cxd4 {[%clk
0:02:34.7]} 14. cxd4 {[%clk 0:02:34.6]} 14... Ba6 {[%clk 0:02:22.2]} 15. Re1
{[%clk 0:02:34.4]} 15... d5 {[%clk 0:02:19.2]} 16. e5 {[%clk 0:02:34.1]} 16...
Nf5 {[%clk 0:02:16.8]} 17. Bf2 {[%clk 0:02:34.1]} 17... h5 {[%clk 0:02:01.6]}
18. Nc5 {[%clk 0:02:30]} 18... Bc4 {[%clk 0:01:46.4]} 19. Qa4 {[%clk 0:02:22.7]}
19... Nb4 {[%clk 0:01:38.3]} 20. Red1 {[%clk 0:01:58.7]} 20... Qe8 {[%clk
0:01:02.5]} 21. Qxe8 {[%clk 0:01:32.1]} 21... Rfxe8 {[%clk 0:01:01.6]} 22. Rd2
{[%clk 0:01:31.5]} 22... Bf8 {[%clk 0:00:59.1]} 23. Nd7 {[%clk 0:01:29.5]} 23...
Be7 {[%clk 0:00:39.7]} 24. Nxb8 {[%clk 0:01:27.4]} 24... Rxb8 {[%clk 0:00:40.5]}
25. Rb1 {[%clk 0:01:19.1]} 25... Rc8 {[%clk 0:00:38.4]} 26. Bf1 {[%clk
0:01:16.6]} 26... Bxa2 {[%clk 0:00:34.2]} 27. Rxb4 {[%clk 0:01:14.9]} 27... Bxb4
{[%clk 0:00:31.5]} 28. Rxa2 {[%clk 0:01:15]} 28... a5 {[%clk 0:00:32.3]} 29. Be1
{[%clk 0:01:15.1]} 29... Bxe1 {[%clk 0:00:30.4]} 30. Nxe1 {[%clk 0:01:16]} 30...
Rc1 {[%clk 0:00:30.3]} 31. Kf2 {[%clk 0:01:14.2]} 31... Nxd4 {[%clk 0:00:29.5]}
32. Rxa5 {[%clk 0:01:13.8]} 32... Rb1 {[%clk 0:00:26.2]} 33. Nd3 {[%clk
0:01:12]} 33... Rd1 {[%clk 0:00:22.8]} 34. Ra2 {[%clk 0:00:57.9]} 34... Rb1
{[%clk 0:00:19.9]} 35. Rb2 {[%clk 0:00:55.4]} 35... Ra1 {[%clk 0:00:19.3]} 36.
h3 {[%clk 0:00:54.2]} 36... Kg7 {[%clk 0:00:19.5]} 37. g4 {[%clk 0:00:53.7]}
37... hxg4 {[%clk 0:00:19.1]} 38. hxg4 {[%clk 0:00:54.6]} 38... g5 {[%clk
0:00:18.6]} 39. Rb4 {[%clk 0:00:40.9]} 39... Nc6 {[%clk 0:00:14.2]} 40. Rb6
{[%clk 0:00:40.8]} 40... Ne7 {[%clk 0:00:13.2]} 41. Rb7 {[%clk 0:00:34.6]} 41...
Ra2+ {[%clk 0:00:13.9]} 42. Ke3 {[%clk 0:00:32.7]} 42... Ng6 {[%clk 0:00:14.7]}
43. f5 {[%clk 0:00:31.8]} 43... exf5 {[%clk 0:00:12.8]} 44. gxf5 {[%clk
0:00:32.7]} 44... Nh4 {[%clk 0:00:12.2]} 45. f6+ {[%clk 0:00:32.1]} 45... Kg6
{[%clk 0:00:12.1]} 46. Bh3 {[%clk 0:00:31.1]} 46... Nf5+ {[%clk 0:00:12.1]} 47.
Bxf5+ {[%clk 0:00:30.9]} 47... Kxf5 {[%clk 0:00:12.9]} 48. Rxf7 {[%clk
0:00:30.9]} 48... g4 {[%clk 0:00:12.9]} 49. Rg7 {[%clk 0:00:30.4]} 49... Ra3
{[%clk 0:00:11.3]} 50. Kd4 {[%clk 0:00:29.5]} 50... Ra4+ {[%clk 0:00:10.4]} 51.
Kxd5 {[%clk 0:00:29.2]} 51... Re4 {[%clk 0:00:08.8]} 52. Rg5+ {[%clk 0:00:25.2]}
52... Kxg5 {[%clk 0:00:08.3]} 53. Kxe4 {[%clk 0:00:25.3]} 1-0

[Event "Early-Titled-Tuesday-Blitz-February-20-2024"]
[Site "Chess.com"]
[Date "2024.02.20"]
[Round "1"]
[White "bipe137"]
[Black "bancsoo"]
[Result "1-0"]
[WhiteElo "2522"]
[BlackElo "2897"]
[TimeControl "180+1"]
[EndTime "8:07:44 PST"]
[Termination "bipe137 won by resignation"]

1. d4 {[%clk 0:03:00.9]} 1... Nf6 {[%clk 0:02:59]} 2. c4 {[%clk 0:03:01.3]} 2...
e6 {[%clk 0:02:59.1]} 3. Nc3 {[%clk 0:03:01.8]} 3... Bb4 {[%clk 0:02:59]} 4. Qb3
{[%clk 0:02:58.4]} 4... c5 {[%clk 0:02:56.8]} 5. dxc5 {[%clk 0:02:57.8]} 5...
Na6 {[%clk 0:02:56.8]} 6. a3 {[%clk 0:02:55.4]} 6... Bxc5 {[%clk 0:02:56.1]} 7.
Qc2 {[%clk 0:02:54.8]} 7... O-O {[%clk 0:02:52.8]} 8. Nf3 {[%clk 0:02:55.2]}
8... b6 {[%clk 0:02:47]} 9. Bg5 {[%clk 0:02:54.7]} 9... Be7 {[%clk 0:02:46.1]}
10. e3 {[%clk 0:02:51.9]} 10... Bb7 {[%clk 0:02:46.3]} 11. Be2 {[%clk
0:02:51.6]} 11... Rc8 {[%clk 0:02:44.4]} 12. O-O {[%clk 0:02:51.9]} 12... h6
{[%clk 0:02:39.4]} 13. Bh4 {[%clk 0:02:51.5]} 13... Nc5 {[%clk 0:02:33.7]} 14.
Rac1 {[%clk 0:02:45]} 14... d6 {[%clk 0:02:28.2]} 15. Rfd1 {[%clk 0:02:44]}
15... a6 {[%clk 0:02:28.6]} 16. b4 {[%clk 0:02:39.5]} 16... Ncd7 {[%clk
0:02:27.9]} 17. h3 {[%clk 0:02:29.2]} 17... Qc7 {[%clk 0:02:25.4]} 18. Qb2
{[%clk 0:02:26]} 18... Rfe8 {[%clk 0:02:23.6]} 19. Rd2 {[%clk 0:02:18.5]} 19...
Qb8 {[%clk 0:02:23.6]} 20. Rcd1 {[%clk 0:02:17.4]} 20... Bxf3 {[%clk 0:02:16.3]}
21. Bxf3 {[%clk 0:02:13.5]} 21... Rxc4 {[%clk 0:02:15.3]} 22. Bg3 {[%clk
0:02:10.2]} 22... Rec8 {[%clk 0:01:53.6]} 23. Ne2 {[%clk 0:02:01.5]} 23... Ne5
{[%clk 0:01:49.7]} 24. Bxe5 {[%clk 0:02:00.9]} 24... dxe5 {[%clk 0:01:49.9]} 25.
Ng3 {[%clk 0:01:57.5]} 25... b5 {[%clk 0:01:42.5]} 26. Be2 {[%clk 0:01:52.9]}
26... Rc3 {[%clk 0:01:41.5]} 27. Bd3 {[%clk 0:01:49.6]} 27... Qb7 {[%clk
0:01:26.2]} 28. Ne2 {[%clk 0:01:48.8]} 28... R3c7 {[%clk 0:01:14]} 29. Qxe5
{[%clk 0:01:48.7]} 29... Qb6 {[%clk 0:01:07.6]} 30. Bb1 {[%clk 0:01:46.8]} 30...
Nd5 {[%clk 0:00:56.3]} 31. Qe4 {[%clk 0:01:42.4]} 31... f5 {[%clk 0:00:51.7]}
32. Qd3 {[%clk 0:01:30.4]} 32... Nf6 {[%clk 0:00:47.9]} 33. Qb3 {[%clk 0:01:26]}
33... Kh8 {[%clk 0:00:43.6]} 34. Nf4 {[%clk 0:01:18]} 34... Rc3 {[%clk 0:00:31]}
35. Qb2 {[%clk 0:01:16.3]} 35... Kh7 {[%clk 0:00:16.3]} 36. Rd3 {[%clk
0:01:11.4]} 36... Rxd3 {[%clk 0:00:16.1]} 37. Bxd3 {[%clk 0:01:10.9]} 37... g5
{[%clk 0:00:13.8]} 38. Ne2 {[%clk 0:01:06.4]} 38... Rd8 {[%clk 0:00:12.6]} 39.
Nd4 {[%clk 0:01:00.8]} 39... Kg8 {[%clk 0:00:09.9]} 40. Qb3 {[%clk 0:00:52.4]}
40... Rd5 {[%clk 0:00:10.2]} 41. Rc1 {[%clk 0:00:45]} 41... Kf7 {[%clk
0:00:10.3]} 42. Rc6 {[%clk 0:00:44]} 42... Qb7 {[%clk 0:00:09.2]} 43. Rxe6
{[%clk 0:00:43.3]} 43... Rxd4 {[%clk 0:00:07.9]} 44. exd4 {[%clk 0:00:38.4]}
44... Kf8 {[%clk 0:00:06.7]} 45. Bxf5 {[%clk 0:00:35.7]} 45... Qc7 {[%clk
0:00:06.7]} 46. Qe3 {[%clk 0:00:32.3]} 46... Nd5 {[%clk 0:00:05.8]} 47. Qe5
{[%clk 0:00:30.6]} 47... Qc1+ {[%clk 0:00:02.7]} 48. Kh2 {[%clk 0:00:31.2]}
48... Nf4 {[%clk 0:00:03.2]} 49. Qh8+ {[%clk 0:00:25.2]} 1-0